bitfinex-derivatives/quotes_BNBF0:USTF0_20241225
["timestamp","ask_amount","ask_price","bid_price","bid_amount"]
[1735135258210,0.25868029,711.32,709.66,1.05648673]
[1735135258414,0.25868029,711.45,709.67,1.05648673]
[1735135258616,0.25868029,711.44,709.67,1.05648673]
[1735135258816,0.25868029,711.43,709.67,1.05648673]
[1735135259017,0.25868029,711.42,709.67,1.05648673]
[1735135259317,0.25868029,711.41,709.78,1.05648673]
[1735135259517,0.25868029,711.4,709.78,1.05648673]
[1735135259717,0.25868029,711.39,709.78,1.05648673]
[1735135259915,0.28111207,711.46,709.78,1.05648673]
[1735135260116,0.2586725,711.45,709.63,1.05648673]
[1735135260917,0.25866791,711.44,709.63,1.05648673]
[1735135261116,0.25866791,711.44,709.49,0.28189262]
[1735135261117,0.25866791,711.43,709.65,1.05648673]
[1735135261312,0.25866791,711.42,709.65,1.05648673]
[1735135261516,0.25866791,711.41,709.65,1.05648673]
[1735135261719,0.28111207,711.46,709.65,1.05648673]
[1735135261920,0.25866995,711.45,709.66,1.05648673]
[1735135263019,0.25866744,711.44,709.63,1.05648673]
[1735135263218,0.28111207,711.46,709.63,1.05648673]
[1735135263719,0.28111207,711.46,709.69,1.05648673]
[1735135264822,0.28111207,711.46,709.71,1.05648673]
[1735135266021,0.28111207,711.46,709.49,0.28189262]
[1735135266022,0.28111207,711.46,709.69,1.05648673]
[1735135266520,0.28111207,711.46,709.73,1.05648673]
[1735135267521,0.28111207,711.46,709.72,1.05648673]
[1735135268426,0.28111207,711.46,709.75,1.05648673]
[1735135268622,0.25865714,711.45,709.75,1.05648673]
[1735135269627,0.25865714,711.45,709.89,1.05648673]
[1735135271830,0.25865714,711.45,709.98,1.05648673]
[1735135273027,0.25865714,711.45,710.04,1.05648673]
[1735135273832,0.25865714,711.45,709.97,1.05648673]
[1735135274230,0.28111207,711.46,709.97,1.05648673]
[1735135274628,0.28111207,711.46,709.69,1.05648673]
[1735135276728,0.28111207,711.46,709.72,1.05648673]
[1735135279734,0.28111207,711.46,709.73,1.05648673]
[1735135280830,0.28111207,711.46,709.49,0.28189262]
[1735135280831,0.28111207,711.46,709.74,1.05648673]
[1735135283238,0.28111207,711.46,709.75,1.05648673]
[1735135283837,0.28111207,711.46,709.76,1.05648673]
[1735135285040,0.28111207,711.46,709.87,1.05648673]
[1735135285237,0.28111207,711.46,710.0,1.05648673]
[1735135285642,0.25865694,711.45,710.0,1.05648673]
[1735135285841,0.28111207,711.46,710.0,1.05648673]
[1735135286142,0.25865687,711.45,709.99,1.05648673]
[1735135287243,0.25865687,711.45,709.49,2.43888636]
[1735135287244,0.25865687,711.45,709.89,1.05648673]
[1735135287942,0.25865687,711.45,709.82,1.05648673]
[1735135289142,0.25865687,711.45,709.7,1.05648673]
[1735135290444,0.25865687,711.45,709.49,0.28189262]
[1735135290445,0.25865687,711.45,709.63,1.05648673]
[1735135290647,0.25877487,711.44,709.63,1.05648673]
[1735135290844,0.25877487,711.43,709.63,1.05648673]
[1735135291040,0.25877487,711.42,709.63,1.05648673]
[1735135291239,0.25877487,711.41,709.63,1.05648673]
[1735135291548,0.25877487,711.4,709.53,1.05648673]
[1735135291846,0.25877487,711.39,709.53,1.05648673]
[1735135292044,0.25877487,711.38,709.53,1.05648673]
[1735135292345,0.25877487,711.37,709.53,1.05648673]
[1735135292646,0.25877487,711.36,709.53,1.05648673]
[1735135292840,0.25877487,711.35,709.52,1.05648673]
[1735135293045,0.25877487,711.34,709.52,1.05648673]
[1735135293345,0.25877487,711.33,709.52,1.05648673]
[1735135293547,0.25878421,711.32,709.52,1.05648673]
[1735135293823,0.25878421,711.31,709.49,0.28189262]
[1735135293943,0.25878421,711.3,709.49,0.28189262]
[1735135294147,0.25878421,711.29,709.49,0.28189262]
[1735135294343,0.25878421,711.28,709.49,0.28189262]
[1735135294545,0.25878421,711.27,709.49,0.28189262]
[1735135294742,0.25878421,711.26,709.49,0.28189262]
[1735135294946,0.25878421,711.25,709.49,0.28189262]
[1735135295248,0.25878421,711.24,709.49,0.28189262]
[1735135295440,0.25882187,711.23,709.49,0.28189262]
[1735135295646,0.25882187,711.22,709.49,0.28189262]
[1735135295848,0.25882187,711.21,709.49,0.28189262]
[1735135296149,0.28111207,711.46,709.49,0.28189262]
[1735135296357,0.25883126,711.45,709.49,0.28189262]
[1735135296948,0.28111207,711.46,709.49,0.28189262]
[1735135296949,0.25883126,711.44,709.49,0.28189262]
[1735135297250,0.25883126,711.43,709.49,0.28189262]
[1735135297450,0.25883126,711.42,709.49,0.28189262]
[1735135297651,0.25883126,711.41,709.49,0.28189262]
[1735135297951,0.25883126,711.4,709.49,0.28189262]
[1735135298150,0.25883126,711.39,709.49,0.28189262]
[1735135298449,0.25883126,711.38,709.49,0.28189262]
[1735135298652,0.25883126,711.37,709.49,0.28189262]
[1735135298849,0.25883126,711.45,709.49,0.28189262]
[1735135299048,0.25883126,711.44,709.49,0.28189262]
[1735135299269,0.25883126,711.43,709.49,0.28189262]
[1735135299452,0.25883126,711.42,709.49,0.28189262]
[1735135299648,0.25883126,711.41,709.49,0.28189262]
[1735135299950,0.25883126,711.4,709.49,0.28189262]
[1735135300143,0.25883126,711.39,709.49,0.28189262]
[1735135300348,0.25883126,711.38,709.49,0.28189262]
[1735135300650,0.25883126,711.37,709.49,0.28189262]
[1735135300850,0.25883126,711.36,709.49,0.28189262]
[1735135301046,0.25883126,711.35,709.49,0.28189262]
[1735135301251,0.25883126,711.34,709.49,0.28189262]
[1735135301450,0.28111207,711.46,709.49,0.28189262]
[1735135301451,0.25883126,711.33,709.49,0.28189262]
[1735135301753,0.25883126,711.32,709.49,0.28189262]
[1735135301950,0.25879711,711.45,709.49,0.28189262]
[1735135302149,0.25879711,711.44,709.49,0.28189262]
[1735135302359,0.25879711,711.43,709.49,0.28189262]
[1735135302653,0.25879711,711.42,709.49,0.28189262]
[1735135302962,0.25879711,711.41,709.49,0.28189262]
[1735135303049,0.25879711,711.4,709.49,0.28189262]
[1735135303247,0.25879711,711.39,709.49,0.28189262]
[1735135303445,0.25879711,711.38,709.49,0.28189262]
[1735135303649,0.25879711,711.37,709.49,0.28189262]
[1735135303849,0.25879711,711.36,709.49,0.28189262]
[1735135304049,0.25879711,711.35,709.49,0.28189262]
[1735135304252,0.25879711,711.34,709.49,0.28189262]
[1735135304446,0.25879711,711.33,709.49,0.28189262]
[1735135304647,0.2587637,711.32,709.49,0.28189262]
[1735135304848,0.2587637,711.45,709.49,0.28189262]
[1735135305052,0.2587637,711.44,709.49,0.28189262]
[1735135305252,0.2587637,711.43,709.49,0.28189262]
[1735135305551,0.2587637,711.42,709.49,0.28189262]
[1735135305751,0.2587637,711.41,709.49,0.28189262]
[1735135305952,0.2587637,711.4,709.49,0.28189262]
[1735135306152,0.2587637,711.39,709.49,0.28189262]
[1735135306353,0.2587637,711.38,709.49,0.28189262]
[1735135306653,0.2587637,711.37,709.49,0.28189262]
[1735135306952,0.2587637,711.36,709.49,0.28189262]
[1735135307250,0.28111207,711.46,709.49,0.28189262]
[1735135307547,0.25875705,711.45,709.49,0.28189262]
[1735135308052,0.28111207,711.46,709.49,0.28189262]
[1735135308352,0.2587601,711.45,709.49,0.28189262]
[1735135309345,0.2587601,711.44,709.49,0.28189262]
[1735135309649,0.2587601,711.43,709.49,0.28189262]
[1735135309845,0.2587601,711.42,709.49,0.28189262]
[1735135310050,0.2587601,711.41,709.49,0.28189262]
[1735135310245,0.25880275,711.4,709.49,0.28189262]
[1735135310450,0.25880275,711.39,709.49,0.28189262]
[1735135310646,0.25880275,711.38,709.49,0.28189262]
[1735135310852,0.25880275,711.37,709.49,0.28189262]
[1735135311053,0.25880275,711.36,709.49,0.28189262]
[1735135311250,0.25880275,711.35,709.49,0.28189262]
[1735135311499,0.25880275,711.34,709.49,0.28189262]
[1735135311755,0.25880275,711.33,709.49,0.28189262]
[1735135311975,0.25880275,711.32,709.49,0.28189262]
[1735135312253,0.25880275,711.31,709.49,0.28189262]
[1735135312452,0.25880275,711.3,709.49,0.28189262]
[1735135312653,0.25880275,711.29,709.49,0.28189262]
[1735135312847,0.28111207,711.46,709.49,0.28189262]
[1735135313049,0.25879651,711.45,709.49,0.28189262]
[1735135313247,0.25879651,711.44,709.49,0.28189262]
[1735135313449,0.25879651,711.43,709.49,0.28189262]
[1735135313756,0.25879651,711.42,709.49,0.28189262]
[1735135313950,0.25879651,711.41,709.49,0.28189262]
[1735135314151,0.25879651,711.4,709.49,0.28189262]
[1735135314348,0.25879651,711.39,709.49,0.28189262]
[1735135314549,0.25879651,711.38,709.49,0.28189262]
[1735135314747,0.25879651,711.37,709.49,0.28189262]
[1735135314950,0.25879651,711.36,709.49,0.28189262]
[1735135315149,0.25879651,711.35,709.49,0.28189262]
[1735135315352,0.25879651,711.34,709.49,0.28189262]
[1735135315556,0.25879651,711.33,709.49,0.28189262]
[1735135315857,0.25879217,711.32,709.49,0.28189262]
[1735135316057,0.25879217,711.31,709.49,0.28189262]
[1735135316253,0.25879217,711.3,709.49,0.28189262]
[1735135316456,0.25879392,711.29,709.49,0.28189262]
[1735135316653,0.25879392,711.28,709.49,0.28189262]
[1735135316855,0.25879392,711.27,709.49,0.28189262]
[1735135317155,0.25879392,711.26,709.49,0.28189262]
[1735135317351,0.25879392,711.25,709.49,0.28189262]
[1735135317553,0.25879392,711.24,709.49,0.28189262]
[1735135317754,0.25879392,711.23,709.49,0.28189262]
[1735135317952,0.25879392,711.22,709.49,0.28189262]
[1735135318255,0.25879392,711.21,709.49,0.28189262]
[1735135318456,0.28111207,711.46,709.49,0.28189262]
[1735135318656,0.25879219,711.45,709.49,0.28189262]
[1735135321054,0.2587928,711.44,709.49,0.28189262]
[1735135321271,0.2587928,711.43,709.49,0.28189262]
[1735135321450,0.2587928,711.42,709.49,0.28189262]
[1735135321657,0.2587928,711.41,709.49,0.28189262]
[1735135321852,0.2587928,711.4,709.49,0.28189262]
[1735135322153,0.2587928,711.39,709.49,0.28189262]
[1735135322362,0.2587928,711.38,709.49,0.28189262]
[1735135322556,0.2587928,711.37,709.49,0.28189262]
[1735135322757,0.2587928,711.36,709.49,0.28189262]
[1735135322954,0.2587928,711.35,709.49,0.28189262]
[1735135323152,0.25883358,711.34,709.49,0.28189262]
[1735135323356,0.25883358,711.33,709.49,0.28189262]
[1735135323558,0.28111207,711.46,709.49,0.28189262]
[1735135323559,1.05699847,711.13,709.57,1.05648673]
[1735135323759,0.25883358,711.12,709.57,1.05648673]
[1735135323954,0.2588399,711.11,709.57,1.05648673]
[1735135324154,0.2588399,711.1,709.57,1.05648673]
[1735135324360,0.25481554,711.09,709.57,1.05648673]
[1735135324660,1.05699847,711.27,709.49,0.28189262]
[1735135325362,0.25885498,711.26,709.49,0.28189262]
[1735135325554,0.25885498,711.25,709.49,0.28189262]
[1735135325756,0.25885498,711.24,709.49,0.28189262]
[1735135325960,0.25889053,711.23,709.49,0.28189262]
[1735135326161,0.25889053,711.22,709.49,0.28189262]
[1735135326362,0.25889053,711.21,709.49,0.28189262]
[1735135326578,0.25889053,711.2,709.49,0.28189262]
[1735135326758,1.05699847,711.07,709.49,0.28189262]
[1735135326962,0.25889053,711.06,709.49,0.28189262]
[1735135327160,0.25889053,711.05,709.49,0.28189262]
[1735135327464,0.25889053,711.04,709.49,0.28189262]
[1735135327654,0.25889053,711.03,709.49,0.28189262]
[1735135327858,0.25889053,711.02,709.49,0.28189262]
[1735135328061,0.25889053,711.01,709.49,0.28189262]
[1735135328265,0.25889053,711.0,709.49,0.28189262]
[1735135328557,0.25892061,710.99,709.49,0.28189262]
[1735135328762,0.25892061,710.98,709.49,0.28189262]
[1735135328963,0.25892061,710.97,709.49,0.28189262]
[1735135329159,0.25892061,710.96,709.49,0.28189262]
[1735135329464,1.05699847,711.19,709.49,0.28189262]
[1735135329465,0.25892061,710.95,709.49,0.28189262]
[1735135329662,0.25892061,710.94,709.49,0.28189262]
[1735135329858,0.25892061,710.93,709.49,0.28189262]
[1735135330063,0.25892061,710.92,709.49,0.28189262]
[1735135330264,0.25892061,710.91,709.49,0.28189262]
[1735135330463,0.25892061,710.9,709.49,0.28189262]
[1735135330664,0.25892061,710.89,709.49,0.28189262]
[1735135330865,0.25892061,710.88,709.49,0.28189262]
[1735135331059,0.25892061,710.87,709.49,0.28189262]
[1735135331262,0.2589066,710.86,709.49,0.28189262]
[1735135331459,0.2589066,710.85,709.49,0.28189262]
[1735135331765,0.2589066,710.84,709.49,0.28189262]
[1735135331968,1.05699847,711.18,709.49,0.28189262]
[1735135332178,0.25891701,711.17,709.49,0.28189262]
[1735135332367,0.25891701,711.16,709.49,0.28189262]
[1735135332666,0.25891701,711.15,709.49,0.28189262]
[1735135332868,0.25891701,711.14,709.49,0.28189262]
[1735135333066,0.25891701,711.13,709.49,0.28189262]
[1735135333269,0.25891701,711.12,709.49,0.28189262]
[1735135333468,0.25891701,711.11,709.49,0.28189262]
[1735135333762,0.25891701,711.1,709.49,0.28189262]
[1735135333963,1.05699847,711.12,709.49,0.28189262]
[1735135334169,0.25893086,711.11,709.49,0.28189262]
[1735135334363,0.25893086,711.1,709.49,0.28189262]
[1735135334567,0.25893086,711.09,709.49,0.28189262]
[1735135334864,0.25893086,711.08,709.49,0.28189262]
[1735135335069,0.25893086,711.07,709.49,0.28189262]
[1735135335273,0.25893086,711.06,709.49,0.28189262]
[1735135335470,0.25893086,711.05,709.49,0.28189262]
[1735135335769,0.25893086,711.04,709.49,0.28189262]
[1735135335969,0.25893086,711.03,709.49,0.28189262]
[1735135336167,0.25893086,711.02,709.49,0.28189262]
[1735135336369,0.25893086,711.01,709.49,0.28189262]
[1735135336568,0.25893086,711.0,709.49,0.28189262]
[1735135336769,0.25893086,710.99,709.49,0.28189262]
[1735135337069,0.25893086,710.98,709.49,0.28189262]
[1735135337270,0.25893086,710.97,709.49,0.28189262]
[1735135337467,0.25893086,710.96,709.49,0.28189262]
[1735135337675,0.25893086,710.95,709.49,0.28189262]
[1735135338005,0.25893086,710.94,709.49,0.28189262]
[1735135338067,0.25893086,710.93,709.49,0.28189262]
[1735135338363,1.05699847,711.47,709.49,0.28189262]
[1735135338569,0.25888465,711.45,709.49,0.28189262]
[1735135339364,1.05699847,711.47,709.49,0.28189262]
[1735135339365,0.25886399,711.44,709.49,0.28189262]
[1735135339568,0.25886399,711.43,709.49,0.28189262]
[1735135339773,0.25886399,711.42,709.49,0.28189262]
[1735135340064,1.05699847,711.92,709.49,0.28189262]
[1735135340272,0.25884898,711.41,709.49,0.28189262]
[1735135340471,0.25884898,711.4,709.49,0.28189262]
[1735135340751,0.25884898,711.39,709.49,0.28189262]
[1735135340874,0.25884898,711.38,709.49,0.28189262]
[1735135341067,0.25884898,711.37,709.49,0.28189262]
[1735135341271,0.25884898,711.36,709.49,0.28189262]
[1735135341473,0.25884898,711.35,709.49,0.28189262]
[1735135341670,0.25884898,711.45,709.49,0.28189262]
[1735135341871,0.25884898,711.44,709.49,0.28189262]
[1735135342071,0.25884898,711.43,709.49,0.28189262]
[1735135342275,0.25884898,711.45,709.49,0.28189262]
[1735135342476,0.25884898,711.44,709.49,0.28189262]
[1735135342674,1.05699847,711.99,709.49,0.28189262]
[1735135342675,0.25884898,711.43,709.49,0.28189262]
[1735135342872,0.25884898,711.42,709.49,0.28189262]
[1735135343076,0.25884898,711.41,709.49,0.28189262]
[1735135343270,0.25884898,711.4,709.49,0.28189262]
[1735135343473,1.05699847,711.71,709.49,0.28189262]
[1735135343682,0.25878937,711.45,709.49,0.28189262]
[1735135344776,0.25878937,711.44,709.49,0.28189262]
[1735135344978,0.25878937,711.43,709.49,0.28189262]
[1735135345276,0.25878937,711.42,709.49,0.28189262]
[1735135345473,0.25878937,711.41,709.49,0.28189262]
[1735135345677,0.25878937,711.4,709.49,0.28189262]
[1735135345879,0.25878937,711.39,709.49,0.28189262]
[1735135346074,0.25878937,711.38,709.49,0.28189262]
[1735135346276,0.25878937,711.37,709.49,0.28189262]
[1735135346479,1.05699847,711.51,709.49,0.28189262]
[1735135346480,0.25878937,711.36,709.49,0.28189262]
[1735135346777,1.05699847,711.51,709.49,0.28189262]
[1735135346778,0.25878937,711.35,709.49,0.28189262]
[1735135346979,0.25878937,711.34,709.49,0.28189262]
[1735135347178,0.25878937,711.33,709.49,0.28189262]
[1735135347379,0.25878937,711.32,709.49,0.28189262]
[1735135347585,0.25878937,711.31,709.49,0.28189262]
[1735135347780,0.25878937,711.45,709.49,0.28189262]
[1735135347980,0.25878937,711.44,709.49,0.28189262]
[1735135348180,0.25878937,711.43,709.49,0.28189262]
[1735135348480,0.25877443,711.42,709.49,0.28189262]
[1735135348677,0.25877443,711.41,709.49,0.28189262]
[1735135348881,0.25877443,711.4,709.49,0.28189262]
[1735135349082,1.05699847,711.54,709.49,0.28189262]
[1735135349083,0.25877443,711.39,709.49,0.28189262]
[1735135349379,0.25877443,711.38,709.49,0.28189262]
[1735135349576,0.25877443,711.37,709.52,1.05648673]
[1735135349780,1.05699847,711.52,709.52,1.05648673]
[1735135349781,0.25877443,711.36,709.52,1.05648673]
[1735135349981,0.25877443,711.35,709.52,1.05648673]
[1735135350181,0.25877443,711.34,709.52,1.05648673]
[1735135350377,0.25877443,711.33,709.52,1.05648673]
[1735135350578,0.25878241,711.32,709.49,0.28189262]
[1735135350781,0.25878241,711.31,709.49,0.28189262]
[1735135350975,0.25878241,711.3,709.49,0.28189262]
[1735135351176,0.25878241,711.29,709.49,0.28189262]
[1735135351378,0.25878241,711.28,709.49,0.28189262]
[1735135351582,0.25878241,711.27,709.49,0.28189262]
[1735135351778,0.25878241,711.26,709.49,0.28189262]
[1735135351982,0.25878241,711.25,709.49,0.28189262]
[1735135352182,0.25878241,711.24,709.49,0.28189262]
[1735135352377,0.25878241,711.23,709.49,0.28189262]
[1735135352588,0.25878241,711.22,709.49,0.28189262]
[1735135352884,0.63582297,711.95,709.49,0.28189262]
[1735135352885,0.25878241,711.21,709.49,0.28189262]
[1735135353083,0.25878241,711.2,709.49,0.28189262]
[1735135353276,0.25878472,711.19,709.49,0.28189262]
[1735135353478,0.25878472,711.18,709.49,0.28189262]
[1735135353679,1.05699847,711.79,709.49,0.28189262]
[1735135353884,0.2587734,711.45,709.49,0.28189262]
[1735135356188,0.25881297,711.44,709.49,0.28189262]
[1735135356387,0.25881297,711.43,709.49,0.28189262]
[1735135356591,0.25881297,711.42,709.49,0.28189262]
[1735135356787,0.25881297,711.41,709.49,0.28189262]
[1735135356985,0.25881297,711.4,709.49,0.28189262]
[1735135357183,0.25881297,711.39,709.49,0.28189262]
[1735135357388,0.25881297,711.38,709.49,0.28189262]
[1735135357588,0.25881297,711.37,709.49,0.28189262]
[1735135357889,0.25881297,711.36,709.49,0.28189262]
[1735135358088,0.25881297,711.35,709.49,0.28189262]
[1735135358283,0.25881297,711.34,709.49,0.28189262]
[1735135358485,0.25881297,711.33,709.49,0.28189262]
[1735135358690,0.25881297,711.32,709.49,0.28189262]
[1735135358994,0.25883088,711.31,709.49,0.28189262]
[1735135359188,9.19097338,711.88,709.49,0.28189262]
[1735135359189,0.25883088,711.3,709.49,0.28189262]
[1735135359383,0.25883088,711.29,709.49,0.28189262]
[1735135359588,0.25883088,711.28,709.49,0.28189262]
[1735135359790,0.25883088,711.27,709.49,0.28189262]
[1735135359989,0.25883088,711.45,709.49,0.28189262]
[1735135360292,0.25883088,711.44,709.49,0.28189262]
[1735135360492,0.25883088,711.43,709.49,0.28189262]
[1735135360695,0.25883088,711.42,709.49,0.28189262]
[1735135360993,0.25883088,711.41,709.49,0.28189262]
[1735135361186,0.25883088,711.4,709.49,0.28189262]
[1735135361385,0.25883088,711.39,709.49,0.28189262]
[1735135361590,0.25883187,711.38,709.49,0.28189262]
[1735135361801,0.25883187,711.37,709.49,0.28189262]
[1735135361993,0.25883187,711.36,709.49,0.28189262]
[1735135362192,0.25883187,711.35,709.49,0.28189262]
[1735135362495,0.25883187,711.34,709.49,0.28189262]
[1735135362692,0.25883187,711.33,709.49,0.28189262]
[1735135362994,0.25883187,711.32,709.49,0.28189262]
[1735135363190,0.25883187,711.31,709.49,0.28189262]
[1735135363392,0.25883187,711.3,709.49,0.28189262]
[1735135363589,0.25883187,711.29,709.49,0.28189262]
[1735135363795,0.25883187,711.28,709.49,0.28189262]
[1735135364090,0.25883187,711.27,709.49,0.28189262]
[1735135364292,1.05699847,711.62,709.49,0.28189262]
[1735135364493,6.68770312,711.82,709.49,0.28189262]
[1735135364494,0.25887205,711.45,709.49,0.28189262]
[1735135364693,0.25887205,711.44,709.49,0.28189262]
[1735135364898,0.25887205,711.43,709.49,0.28189262]
[1735135365091,0.25887205,711.42,709.49,0.28189262]
[1735135365291,0.25887205,711.41,709.49,0.28189262]
[1735135365493,0.25887205,711.4,709.49,0.28189262]
[1735135365697,0.25887205,711.39,709.49,0.28189262]
[1735135365997,0.25887205,711.38,709.49,0.28189262]
[1735135366302,0.25887205,711.37,709.49,0.28189262]
[1735135366498,0.25887205,711.36,709.49,0.28189262]
[1735135366793,0.25887205,711.35,709.49,0.28189262]
[1735135366990,0.25887205,711.34,709.49,0.28189262]
[1735135367293,0.25894598,711.33,709.49,0.28189262]
[1735135367488,0.25894598,711.32,709.49,0.28189262]
[1735135367695,0.25894598,711.31,709.49,0.28189262]
[1735135367890,0.25894598,711.3,709.49,0.28189262]
[1735135368090,1.05699847,711.1,709.49,0.28189262]
[1735135368287,0.25894598,711.09,709.49,0.28189262]
[1735135368492,0.25894598,711.08,709.49,0.28189262]
[1735135368697,0.25894598,711.07,709.49,0.28189262]
[1735135368896,0.25894598,711.06,709.49,0.28189262]
[1735135369100,0.25894598,711.05,709.49,0.28189262]
[1735135369299,0.25894598,711.04,709.49,0.28189262]
[1735135369598,0.25894598,711.03,709.49,0.28189262]
[1735135369801,0.25893,711.02,709.49,0.28189262]
[1735135370100,0.25893,711.01,709.49,0.28189262]
[1735135370293,0.25893,711.0,709.49,0.26627784]
[1735135370491,0.25893,710.99,709.49,0.26627784]
[1735135370690,0.25893,710.98,709.49,0.26627784]
[1735135370904,0.25893,710.97,709.49,0.26627784]
[1735135371095,0.25893,710.96,709.49,0.26627784]
[1735135371298,5.04069687,717.4,709.49,0.26627784]
[1735135371299,0.25893,710.95,709.49,0.26627784]
[1735135371596,0.25893,710.94,709.49,0.26627784]
[1735135371795,0.25893,710.93,709.49,0.26627784]
[1735135372000,0.25893,710.92,709.49,0.26627784]
[1735135372193,0.25893,710.91,709.49,0.26627784]
[1735135372397,0.25893,710.9,709.49,0.26627784]
[1735135372597,0.25892697,710.89,709.49,0.26627784]
[1735135372795,0.25892697,711.14,709.49,0.26627784]
[1735135372999,0.25892697,711.13,709.49,0.26627784]
[1735135373301,0.25892697,711.12,709.49,0.26627784]
[1735135373600,0.25892697,711.11,709.49,0.26627784]
[1735135373798,0.25892697,711.1,709.49,0.26627784]
[1735135374000,0.25892697,711.09,709.49,0.26627784]
[1735135374299,1.05699847,711.16,709.49,0.26627784]
[1735135374300,0.25892697,711.08,709.49,0.26627784]
[1735135374500,0.25892697,711.07,709.49,0.26627784]
[1735135374699,0.25892697,711.06,709.49,0.26627784]
[1735135374904,0.25892697,711.05,709.49,0.26627784]
[1735135375094,0.25892697,711.04,709.49,0.26627784]
[1735135375295,1.05699847,711.18,709.49,0.26627784]
[1735135375497,0.25892946,711.17,709.49,0.26627784]
[1735135375894,0.25892946,711.16,709.49,0.26627784]
[1735135376097,0.25892946,711.15,709.49,0.26627784]
[1735135376292,0.25892946,711.14,709.49,0.26627784]
[1735135376495,0.25892946,711.13,709.49,0.26627784]
[1735135376696,0.25892946,711.12,709.49,0.26627784]
[1735135376897,0.25892946,711.11,709.49,0.26627784]
[1735135377099,0.25892946,711.1,709.49,0.26627784]
[1735135377298,0.25892946,711.09,709.49,0.26627784]
[1735135377520,0.25892946,711.08,709.49,0.26627784]
[1735135377699,0.25892946,711.07,709.49,0.26627784]
[1735135377902,0.25892946,711.06,709.49,0.26627784]
[1735135378201,0.25892946,711.05,709.49,0.26627784]
[1735135378403,0.25892946,711.04,709.49,0.26627784]
[1735135378603,0.25892946,711.03,709.49,0.26627784]
[1735135378799,0.25892946,711.02,709.49,0.26627784]
[1735135379003,0.25892946,711.01,709.49,0.26627784]
[1735135379200,0.25892946,711.0,709.49,0.26627784]
[1735135379402,0.25892946,710.99,709.49,0.26627784]
[1735135379602,0.25892946,710.98,709.49,0.26627784]
[1735135379803,0.25892946,710.97,709.49,0.26627784]
[1735135380012,0.25892946,710.96,709.49,0.26627784]
[1735135380209,0.25892946,711.44,709.49,0.26627784]
[1735135380502,0.25892946,711.43,709.49,0.26627784]
[1735135380706,1.05699847,711.45,709.49,0.26627784]
[1735135380900,0.25890855,711.44,709.49,0.26627784]
[1735135381107,1.05699847,711.42,709.49,0.26627784]
[1735135381306,0.25890855,711.41,709.49,0.26627784]
[1735135381607,0.25890855,711.4,709.49,0.26627784]
[1735135381908,0.25890855,711.39,709.49,0.26627784]
[1735135382123,0.25890855,711.38,709.49,0.26627784]
[1735135382406,0.25890855,711.37,709.49,0.26627784]
[1735135382601,1.05699847,711.43,709.49,0.26627784]
[1735135382602,0.25890855,711.36,709.49,0.26627784]
[1735135382804,0.25890855,711.35,709.49,0.26627784]
[1735135382998,1.05699847,711.48,709.49,0.26627784]
[1735135382999,0.25890855,711.34,709.49,0.26627784]
[1735135383203,0.25890855,711.33,709.49,0.26627784]
[1735135383404,0.25890855,711.32,709.49,0.26627784]
[1735135383605,0.25890855,711.31,709.49,0.26627784]
[1735135383802,0.25890855,711.3,709.49,0.26627784]
[1735135384110,0.25890855,711.29,709.49,0.26627784]
[1735135384310,0.25890855,711.28,709.49,0.26627784]
[1735135384608,0.25890855,711.27,709.49,0.26627784]
[1735135384810,0.25890855,711.26,709.49,0.26627784]
[1735135385110,0.25890855,711.25,709.49,0.26627784]
[1735135385311,0.25890855,711.24,709.49,0.26627784]
[1735135385503,0.25890855,711.23,709.49,0.26627784]
[1735135385709,0.25889445,711.22,709.49,0.26627784]
[1735135385906,0.25889445,711.21,709.49,0.26627784]
[1735135386107,0.25889445,711.2,709.49,0.26627784]
[1735135386309,0.25889445,711.19,709.49,0.26627784]
[1735135386511,0.25889445,711.18,709.49,0.26627784]
[1735135386713,0.25889445,711.17,709.49,0.26627784]
[1735135386907,0.28123461,711.15,709.49,0.26627784]
[1735135387105,0.25889445,711.14,709.49,0.26627784]
[1735135387311,0.28124648,711.12,709.49,0.26627784]
[1735135387512,0.25889445,711.11,709.49,0.26627784]
[1735135388346,1.05699847,711.33,709.49,0.26627784]
[1735135388347,0.28125834,711.09,709.49,0.26627784]
[1735135388512,0.25885696,711.08,709.49,0.26627784]
[1735135388913,0.28126626,711.07,709.49,0.26627784]
[1735135389314,0.25885359,711.06,709.49,0.26627784]
[1735135389612,0.28127417,711.05,709.49,0.26627784]
[1735135389814,0.25888967,711.04,709.49,0.26627784]
[1735135390114,0.28128603,711.02,709.49,0.26627784]
[1735135390413,0.25888967,711.01,709.49,0.26627784]
[1735135390607,0.2812979,710.99,709.49,0.26627784]
[1735135390811,0.25888967,710.98,709.49,0.26627784]
[1735135391206,0.28130977,710.96,709.49,0.26627784]
[1735135391414,0.25888967,710.95,709.49,0.26627784]
[1735135391808,0.28131769,710.94,709.49,0.26627784]
[1735135392007,0.25888967,710.93,709.49,0.26627784]
[1735135392214,0.2813256,710.92,709.49,0.26627784]
[1735135392519,0.25888967,710.91,709.49,0.26627784]
[1735135396717,0.2813256,710.92,709.49,0.26627784]
[1735135396920,0.25887296,710.91,709.49,0.26627784]
[1735135397514,0.25889066,710.9,709.49,0.26627784]
[1735135397712,0.25889066,710.89,709.49,0.26627784]
[1735135397917,0.25889066,710.88,709.49,0.26627784]
[1735135398118,0.25889066,710.87,709.49,0.26627784]